fUSD/lending_fUSD_20241107
["ID","MTS","AMOUNT","RATE_DAILY","PERIOD"]
[341595608,1731014412499,249.77881202,0.00020298,2]
[341595610,1731014592590,2095.38,0.00025,10]
[341595612,1731014825126,-238.05,0.00021745,2]
[341595613,1731014825147,-394.86557517,0.00022539,2]
[341595614,1731014836087,-1022.57301287,0.00022539,2]
[341595615,1731014840104,-180.32141196,0.00022539,2]
[341595616,1731014840126,-858.39485791,0.00022776,2]
[341595617,1731014885295,7552.11061644,0.00015,2]
[341595618,1731014885319,8232.54,0.00015,2]
[341595619,1731014885341,1394.21281477,0.00015,2]
[341595620,1731014885362,10000.0,0.00015,2]
[341595621,1731014885385,10000.0,0.00015,2]
[341595622,1731014885406,10000.0,0.00015,2]
[341595623,1731014885427,10000.0,0.00015,2]
[341595624,1731014885448,8893.32314529,0.00015,2]
[341595625,1731014908362,1106.67685471,0.0002,2]
[341595626,1731014908382,3104.2066008,0.0002,2]
[341595631,1731014926701,153.94,0.00015342,2]
[341595632,1731014946140,-1600.0,0.00022876,2]
[341595633,1731014946162,-1402.71,0.00023797,2]
[341595634,1731014946185,-3781.23799096,0.00023922,2]
[341595635,1731014946209,-1600.0,0.00023972,2]
[341595636,1731014946231,-1600.0,0.00023972,2]
[341595637,1731014946252,-700.0,0.00023972,2]
[341595638,1731014946273,-1499.86,0.00023972,2]
[341595639,1731014946295,-1402.71,0.00024179,2]
[341595640,1731014946316,-1731.16508966,0.00024195,2]
[341595641,1731014952155,-4068.12097975,0.00023972,2]
[341595642,1731014952175,-90.70491034,0.00024195,2]
[341595643,1731014952195,-22267.31608991,0.00024226,2]
[341595644,1731014955286,-1632.68391009,0.00024226,2]
[341595645,1731014955307,-2169.21,0.00024245,2]
[341595646,1731014955328,-164.3,0.0002431,2]
[341595647,1731014955349,-500.0,0.00024398,2]
[341595648,1731014955369,-500.0,0.00024399,2]
[341595649,1731014955388,-150.0,0.00024399,2]
[341595650,1731014955408,-391.85,0.00024399,2]
[341595651,1731014955427,-250.0,0.00024411,2]
[341595652,1731014955447,-600.0,0.00024411,2]
[341595653,1731014955466,-250.0,0.00024414,2]
[341595654,1731014955484,-1244.33,0.00024421,2]
[341595655,1731014955504,-691.68,0.00024421,2]
[341595656,1731014955526,-200.0,0.0002443,2]
[341595657,1731014955546,-250.0,0.00024445,2]
[341595658,1731014955565,-3050.44,0.00024467,2]
[341595659,1731014955585,-169.95,0.00024475,2]
[341595660,1731014955605,-200.0,0.00024479,2]
[341595661,1731014955625,-1402.71,0.00024561,2]
[341595662,1731014955644,-1573.18322133,0.0002469,2]
[341595663,1731014960127,-1218.05251183,0.00023696,2]
[341595664,1731014960149,-26.81677867,0.0002469,2]
[341595665,1731014960169,-184.72,0.00024691,2]
[341595666,1731014960191,-5463.7790235,0.00024691,2]
[341595672,1731014962106,-1218.05251182,0.00023822,2]
[341595673,1731014963118,-4536.2109765,0.00024691,2]
[341595674,1731014963139,-150.99,0.00024691,2]
[341595675,1731014963164,-1597.76,0.00024803,2]
[341595676,1731014963185,-1402.71,0.00024944,2]
[341595677,1731014963204,-1381.55,0.00025052,2]
[341595678,1731014963223,-657.66187625,0.00025068,7]
[341595679,1731014963257,-942.33812375,0.00025068,7]
[341595680,1731014963279,-700.0,0.00025068,7]
[341595681,1731014963303,-1279.92,0.00025077,2]
[341595682,1731014963324,-446.69,0.00025095,2]
[341595683,1731014963345,-724.75,0.00025113,2]
[341595684,1731014963367,-300.0,0.00025116,2]
[341595685,1731014974213,1300.0,0.00023972,2]
[341595686,1731014976212,1124.28335509,0.00025068,7]
[341595687,1731014976234,175.71664491,0.00025068,7]
[341595688,1731014978558,157.49,0.00020313,2]
[341595693,1731014997589,160.00346233,0.00025,7]
[341595694,1731015031941,1000.0,0.00023972,2]
[341595707,1731015032263,-4261.79353953,0.00025226,2]
[341595709,1731015032272,-298.19,0.00025228,2]
[341595711,1731015032282,-232.06526973,0.00025289,2]
[341595714,1731015032291,-28835.58068543,0.0002529,2]
[341595716,1731015032302,-13439.27129802,0.0002529,2]
[341595718,1731015032445,-9904.42356189,0.0002529,2]
[341595719,1731015032458,-34464.20014467,0.0002529,2]
[341595720,1731015032467,-5070.0,0.000253,2]
[341595721,1731015032476,-1402.71,0.00025326,2]
[341595722,1731015032486,-9999.99,0.00025326,2]
[341595723,1731015032496,-186.58,0.00025335,30]
[341595724,1731015032505,-1500.0,0.00025374,2]
[341595725,1731015032515,-1428.64,0.00025389,2]
[341595726,1731015032524,-204.97,0.00025432,120]
[341595727,1731015032534,-400.0,0.00025561,2]
[341595728,1731015032543,-1402.71,0.00025708,2]
[341595729,1731015032554,-155.52,0.00025728,2]
[341595730,1731015032564,-4261.79353946,0.00025745,2]
[341595731,1731015032572,-155.52,0.00025793,2]
[341595732,1731015032583,-292.61,0.00025847,120]
[341595733,1731015032592,-155.52,0.00025857,2]
[341595734,1731015032602,-166.89,0.0002587,2]
[341595735,1731015032611,-1300.0,0.0002589,7]
[341595736,1731015032621,-155.52,0.00025921,2]
[341595737,1731015032630,-155.52,0.00025986,2]
[341595738,1731015032639,-292.03067558,0.00026,2]
[341595744,1731015033523,1000.0,0.00025068,7]
[341595745,1731015033659,500.0,0.00023972,2]
[341595746,1731015035192,500.0,0.00025068,7]
[341595765,1731015038328,-1000.0,0.0002589,7]
[341595767,1731015038339,-500.0,0.0002589,7]
[341595769,1731015038348,-3450.04399938,0.00026,2]
[341595771,1731015038358,-2682.01,0.00026038,2]
[341595773,1731015038368,-453.6188221,0.0002604,2]
[341595775,1731015038377,-168.02,0.00026079,2]
[341595777,1731015038387,-1402.71,0.00026091,2]
[341595779,1731015038397,-274.75,0.00026115,2]
[341595781,1731015038406,-7142.0,0.00026221,2]
[341595783,1731015038416,-232.06526971,0.00026243,2]
[341595785,1731015038426,-4261.79353946,0.00026265,2]
[341595787,1731015038435,-648.4,0.0002639,3]
[341595789,1731015038445,-15504.67573557,0.000264,2]
[341595791,1731015038455,-1402.71,0.00026473,2]
[341595793,1731015038464,-298.19,0.00026489,2]
[341595795,1731015038474,-400.0,0.000266,9]
[341595797,1731015038483,-16899.11861395,0.0002661,2]
[341595800,1731015038493,-800.0,0.000267,9]
[341595802,1731015038503,-1300.0,0.00026712,7]
[341595804,1731015038513,-1000.0,0.00026712,7]
[341595805,1731015038522,-302.42,0.00026723,120]
[341595808,1731015038532,-612.3,0.0002676,2]
[341595810,1731015038543,-4261.79353946,0.00026784,2]
[341595812,1731015038552,-1200.0,0.000268,9]
[341595814,1731015038562,-374.91566929,0.00026879,2]
[341595815,1731015038573,-1600.0,0.000269,9]
[341595816,1731015038584,-800.0,0.00026986,120]
[341595817,1731015038594,-5243.08,0.00027,120]
[341595818,1731015038603,-674.38218725,0.00027,120]
[341595819,1731015038613,-508.30459078,0.00027,120]
[341595820,1731015038622,-2000.0,0.00027,120]
[341595821,1731015038632,-301.41740656,0.00027,120]
[341595822,1731015038642,-153.87,0.00027056,2]
[341595823,1731015038651,-1597.76,0.00027066,2]
[341595824,1731015038661,-3489.35,0.0002713,2]
[341595825,1731015038671,-1000.0,0.00027187,2]
[341595826,1731015038681,-389.6455,0.00027197,2]
[341595827,1731015038691,-875.0842,0.00027197,2]
[341595828,1731015038700,-314.91186299,0.00027197,2]
[341595829,1731015038711,-232.06526971,0.00027197,2]
[341595830,1731015038720,-374.9156693,0.00027281,2]
[341595831,1731015038730,-500.0,0.00027295,2]
[341595832,1731015038740,-565.54655821,0.00027295,2]
[341595833,1731015038749,-12447.97855006,0.00027296,2]
[341595838,1731015040394,-500.0,0.00026712,7]
[341595839,1731015040403,-47777.02144994,0.00027296,2]
[341595840,1731015040413,-28082.97855009,0.00027297,2]
[341595841,1731015040685,-3491.3688,0.00027297,2]
[341595842,1731015040696,-1805.87758174,0.00027297,2]
[341595843,1731015040718,-1290.27840836,0.00027297,2]
[341595844,1731015040730,-40535.44543927,0.00027297,2]
[341595845,1731015040741,-2245.52625,0.00027297,2]
[341595858,1731015043468,-156.02118209,0.00027197,2]
[341595859,1731015043477,-155.28449929,0.00027297,2]
[341595865,1731015043761,-151412.98677125,0.00027297,2]
[341595866,1731015043771,-1851.0899,0.00027297,2]
[341595867,1731015043780,-4261.79353946,0.00027303,2]
[341595868,1731015043790,-500.0,0.00027373,2]
[341595869,1731015043800,-500.0,0.00027373,2]
[341595870,1731015043809,-1000.0,0.00027396,2]
[341595871,1731015043818,-500.0,0.00027397,2]
[341595872,1731015043827,-152.207937,0.00027397,2]
[341595873,1731015043844,-171.791724,0.00027397,2]
[341595874,1731015043853,-174.065454,0.00027397,2]
[341595875,1731015043862,-157.836495,0.00027397,2]
[341595876,1731015043871,-500.0,0.00027397,2]
[341595877,1731015043880,-500.0,0.00027397,2]
[341595878,1731015043890,-500.0,0.00027397,2]
[341595879,1731015043900,-2000.0,0.00027397,2]
[341595880,1731015043909,-200.0,0.00027397,2]
[341595881,1731015043918,-500.0,0.00027397,2]
[341595882,1731015043928,-210.11042679,0.00027397,2]
[341595883,1731015043937,-500.0,0.00027397,2]
[341595884,1731015043946,-500.0,0.00027397,2]
[341595885,1731015043955,-500.0,0.00027397,2]
[341595886,1731015043965,-500.0,0.00027397,2]
[341595887,1731015043975,-500.0,0.00027397,2]
[341595888,1731015043985,-500.0,0.00027397,2]
[341595889,1731015043994,-578.06,0.00027397,2]
[341595890,1731015044004,-188.790649,0.00027397,2]
[341595891,1731015044014,-500.0,0.00027397,2]
[341595892,1731015044023,-500.0,0.00027397,2]
[341595893,1731015044032,-500.0,0.00027397,2]
[341595894,1731015044042,-500.0,0.00027397,2]
[341595895,1731015044051,-500.0,0.00027397,2]
[341595896,1731015044060,-1214.8,0.00027397,2]
[341595897,1731015044069,-657.99,0.00027397,2]
[341595898,1731015044080,-582.07,0.00027397,2]
[341595899,1731015044091,-500.0,0.00027397,2]
[341595900,1731015044101,-595.74,0.00027397,2]
[341595901,1731015044110,-519.04256139,0.00027397,2]
[341595902,1731015044119,-500.0,0.00027397,2]
[341595903,1731015044129,-500.0,0.00027397,2]
[341595904,1731015044139,-500.0,0.00027397,2]
[341595905,1731015044148,-500.0,0.00027397,2]
[341595906,1731015044159,-500.0,0.00027397,2]
[341595907,1731015044169,-500.0,0.00027397,2]
[341595908,1731015044178,-500.0,0.00027397,2]
[341595909,1731015044187,-500.0,0.00027397,2]
[341595910,1731015044197,-500.0,0.00027397,2]
[341595911,1731015044206,-500.0,0.00027397,2]
[341595912,1731015044216,-1489.27,0.00027397,2]
[341595913,1731015044225,-500.0,0.00027397,2]
[341595914,1731015044234,-500.0,0.00027397,2]
[341595915,1731015044243,-500.0,0.00027397,2]
[341595916,1731015044252,-500.0,0.00027397,2]
[341595917,1731015044261,-149.82140974,0.00027397,2]
[341595918,1731015044276,-350.17859026,0.00027397,2]
[341595919,1731015044285,-500.0,0.00027397,2]
[341595920,1731015044294,-434.02501709,0.00027397,2]
[341595921,1731015044386,-888.80498291,0.00027397,2]
[341595922,1731015044397,-531.25,0.00027397,2]
[341595923,1731015044407,-500.0,0.00027397,2]
[341595924,1731015044416,-500.0,0.00027397,2]
[341595925,1731015044426,-698.93,0.00027397,2]
[341595926,1731015044436,-500.0,0.00027397,2]
[341595927,1731015044447,-500.0,0.00027397,2]
[341595928,1731015044456,-500.0,0.00027397,2]
[341595929,1731015044466,-500.0,0.00027397,2]
[341595930,1731015044475,-500.0,0.00027397,2]
[341595931,1731015044484,-500.0,0.00027397,2]
[341595932,1731015044494,-500.0,0.00027397,2]
[341595933,1731015044503,-784.66,0.00027397,2]
[341595934,1731015044513,-500.0,0.00027397,2]
[341595935,1731015044524,-216.3405979,0.00027397,2]
[341595936,1731015044534,-500.0,0.00027397,2]
[341595937,1731015044544,-500.0,0.00027397,2]
[341595938,1731015044554,-500.0,0.00027397,2]
[341595939,1731015044563,-500.0,0.00027397,2]
[341595940,1731015044574,-388.98385734,0.00027397,2]
[341595941,1731015044585,-500.0,0.00027397,2]
[341595942,1731015044594,-500.0,0.00027397,2]
[341595943,1731015044605,-500.0,0.00027397,2]
[341595944,1731015044615,-500.0,0.00027397,2]
[341595945,1731015044625,-500.0,0.00027397,2]
[341595946,1731015044634,-500.0,0.00027397,2]
[341595947,1731015044644,-500.0,0.00027397,2]
[341595948,1731015044653,-500.0,0.00027397,2]
[341595949,1731015044662,-598.03,0.00027397,2]
[341595950,1731015044672,-500.0,0.00027397,2]
[341595951,1731015044682,-500.0,0.00027397,2]
[341595952,1731015044691,-500.0,0.00027397,2]
[341595953,1731015044701,-500.0,0.00027397,2]
[341595954,1731015044711,-599.95,0.00027397,2]
[341595955,1731015044720,-500.0,0.00027397,2]
[341595956,1731015044731,-8155.999999,0.00027397,2]
[341595957,1731015044740,-500.0,0.00027397,2]
[341595958,1731015044750,-500.0,0.00027397,2]
[341595959,1731015044759,-500.0,0.00027397,2]
[341595960,1731015044769,-711.5,0.00027397,2]
[341595961,1731015044778,-500.0,0.00027397,2]
[341595962,1731015044788,-500.0,0.00027397,2]
[341595963,1731015044798,-644.07,0.00027397,2]
[341595964,1731015044808,-500.0,0.00027397,2]
[341595965,1731015044817,-500.0,0.00027397,2]
[341595966,1731015044826,-624.47,0.00027397,2]
[341595967,1731015044837,-597.38,0.00027397,2]
[341595968,1731015044846,-500.0,0.00027397,2]
[341595969,1731015044855,-547.92428579,0.00027397,2]
[341595970,1731015044865,-500.0,0.00027397,2]
[341595971,1731015044874,-500.0,0.00027397,2]
[341595972,1731015044883,-766.04,0.00027397,2]
[341595973,1731015044892,-500.0,0.00027397,2]
[341595974,1731015044902,-500.0,0.00027397,2]
[341595975,1731015044911,-500.0,0.00027397,2]
[341595976,1731015044920,-602.72,0.00027397,2]
[341595977,1731015044929,-500.0,0.00027397,2]
[341595978,1731015044938,-1628.17,0.00027397,2]
[341595979,1731015044947,-500.0,0.00027397,2]
[341595980,1731015044957,-244.0981019,0.00027397,2]
[341595981,1731015044966,-500.0,0.00027397,2]
[341595982,1731015044976,-604.76,0.00027397,2]
[341595983,1731015044985,-500.0,0.00027397,2]
[341595984,1731015044994,-500.0,0.00027397,2]
[341595985,1731015045003,-500.0,0.00027397,2]
[341595986,1731015045013,-500.0,0.00027397,2]
[341595987,1731015045023,-500.0,0.00027397,2]
[341595988,1731015045032,-500.0,0.00027397,2]
[341595989,1731015045298,-500.0,0.00027397,2]
[341595990,1731015045308,-500.0,0.00027397,2]
[341595991,1731015045318,-500.0,0.00027397,2]
[341595992,1731015045327,-500.0,0.00027397,2]
[341595993,1731015045338,-500.0,0.00027397,2]
[341595994,1731015045347,-522.92548222,0.00027397,2]
[341595995,1731015045357,-235.41917052,0.00027397,2]
[341595996,1731015045367,-500.0,0.00027397,2]
[341595997,1731015045376,-500.0,0.00027397,2]
[341595998,1731015045386,-515.02188149,0.00027397,2]
[341595999,1731015045396,-500.0,0.00027397,2]
[341596000,1731015045405,-500.0,0.00027397,2]
[341596001,1731015045415,-23.25632346,0.00027397,2]
[341596002,1731015045486,-476.74367654,0.00027397,2]
[341596003,1731015045496,-500.0,0.00027397,2]
[341596004,1731015045507,-500.0,0.00027397,2]
[341596005,1731015045517,-500.0,0.00027397,2]
[341596006,1731015045527,-524.6,0.00027397,2]
[341596007,1731015045537,-500.0,0.00027397,2]
[341596008,1731015045547,-500.0,0.00027397,2]
[341596009,1731015045557,-500.0,0.00027397,2]
[341596010,1731015045567,-500.0,0.00027397,2]
[341596011,1731015045576,-500.0,0.00027397,2]
[341596012,1731015045587,-500.0,0.00027397,2]
[341596013,1731015045597,-357.92335617,0.00027397,2]
[341596014,1731015045607,-1482.85,0.00027397,2]
[341596015,1731015045616,-500.0,0.00027397,2]
[341596016,1731015045626,-522.87,0.00027397,2]
[341596017,1731015045635,-557.32,0.00027397,2]
[341596018,1731015045646,-500.0,0.00027397,2]
[341596019,1731015045656,-500.0,0.00027397,2]
[341596020,1731015045666,-500.0,0.00027397,2]
[341596021,1731015045676,-500.0,0.00027397,2]
[341596022,1731015045686,-379.62262498,0.00027397,2]
[341596023,1731015045696,-500.0,0.00027397,2]
[341596024,1731015045708,-711.02,0.00027397,2]
[341596025,1731015045718,-664.06,0.00027397,2]
[341596026,1731015045728,-500.0,0.00027397,2]
[341596027,1731015045738,-500.0,0.00027397,2]
[341596028,1731015045748,-500.0,0.00027397,2]
[341596029,1731015045759,-500.0,0.00027397,2]
[341596030,1731015045769,-500.0,0.00027397,2]
[341596031,1731015045779,-500.0,0.00027397,2]
[341596032,1731015045789,-500.0,0.00027397,2]
[341596033,1731015045800,-500.0,0.00027397,2]
[341596034,1731015045810,-500.0,0.00027397,2]
[341596035,1731015045821,-924.41,0.00027397,2]
[341596036,1731015045831,-500.0,0.00027397,2]
[341596037,1731015045843,-500.0,0.00027397,2]
[341596038,1731015045853,-500.0,0.00027397,2]
[341596039,1731015045863,-500.0,0.00027397,2]
[341596040,1731015045873,-500.0,0.00027397,2]
[341596041,1731015045883,-500.0,0.00027397,2]
[341596042,1731015045893,-500.0,0.00027397,2]
[341596043,1731015045903,-547.84,0.00027397,2]
[341596044,1731015045914,-500.0,0.00027397,2]
[341596045,1731015045924,-500.0,0.00027397,2]
[341596046,1731015045934,-610.65,0.00027397,2]
[341596047,1731015045944,-500.0,0.00027397,2]
[341596048,1731015045954,-500.0,0.00027397,2]
[341596049,1731015045963,-274.77914714,0.00027397,2]
[341596050,1731015045973,-500.0,0.00027397,2]
[341596051,1731015045983,-500.0,0.00027397,2]
[341596052,1731015045995,-500.0,0.00027397,2]
[341596053,1731015046005,-500.0,0.00027397,2]
[341596054,1731015046015,-500.0,0.00027397,2]
[341596055,1731015046025,-500.0,0.00027397,2]
[341596057,1731015046035,-500.0,0.00027397,2]
[341596058,1731015046044,-500.0,0.00027397,2]
[341596060,1731015046054,-500.0,0.00027397,2]
[341596061,1731015046064,-500.0,0.00027397,2]
[341596063,1731015046073,-500.0,0.00027397,2]
[341596064,1731015046087,-500.0,0.00027397,2]
[341596065,1731015046096,-500.0,0.00027397,2]
[341596067,1731015046106,-1015.3,0.00027397,2]
[341596069,1731015046116,-500.0,0.00027397,2]
[341596070,1731015046127,-500.0,0.00027397,2]
[341596071,1731015046137,-500.0,0.00027397,2]
[341596072,1731015046146,-500.0,0.00027397,2]
[341596073,1731015046157,-500.0,0.00027397,2]
[341596074,1731015046170,-27.30519509,0.00027397,2]
[341596078,1731015046647,-472.69480491,0.00027397,2]
[341596079,1731015046658,-138.83376635,0.00027397,2]
[341596080,1731015046773,-308.21322722,0.00027397,2]
[341596081,1731015046783,-500.0,0.00027397,2]
[341596082,1731015046792,-500.0,0.00027397,2]
[341596083,1731015046801,-581.8,0.00027397,2]
[341596084,1731015046810,-382.75,0.00027397,2]
[341596085,1731015046819,-500.0,0.00027397,2]
[341596086,1731015046828,-500.0,0.00027397,2]
[341596087,1731015046837,-500.0,0.00027397,2]
[341596088,1731015046846,-506.8,0.00027397,2]
[341596089,1731015046855,-677.4,0.00027397,2]
[341596090,1731015046864,-500.0,0.00027397,2]
[341596091,1731015046873,-500.0,0.00027397,2]
[341596092,1731015046883,-886.08,0.00027397,2]
[341596093,1731015046892,-500.0,0.00027397,2]
[341596094,1731015046902,-767.94,0.00027397,2]
[341596095,1731015046912,-500.0,0.00027397,2]
[341596096,1731015046921,-500.0,0.00027397,2]
[341596097,1731015046930,-500.0,0.00027397,2]
[341596098,1731015046939,-500.0,0.00027397,2]
[341596099,1731015046947,-599.5,0.00027397,2]
[341596100,1731015046956,-500.0,0.00027397,2]
[341596101,1731015046966,-500.0,0.00027397,2]
[341596102,1731015046975,-500.0,0.00027397,2]
[341596103,1731015046985,-500.0,0.00027397,2]
[341596104,1731015046994,-500.0,0.00027397,2]
[341596105,1731015047003,-500.0,0.00027397,2]
[341596106,1731015047013,-500.0,0.00027397,2]
[341596107,1731015047022,-1029.18,0.00027397,2]
[341596108,1731015047032,-500.0,0.00027397,2]
[341596109,1731015047041,-500.0,0.00027397,2]
[341596110,1731015047051,-500.0,0.00027397,2]
[341596111,1731015047060,-500.0,0.00027397,2]
[341596112,1731015047070,-500.0,0.00027397,2]
[341596113,1731015047080,-500.0,0.00027397,2]
[341596114,1731015047092,-865.39,0.00027397,2]
[341596115,1731015047101,-500.0,0.00027397,2]
[341596116,1731015047110,-91.05062178,0.00027397,2]
[341596117,1731015047135,-408.94937822,0.00027397,2]
[341596118,1731015047143,-500.0,0.00027397,2]
[341596119,1731015047152,-3283.82,0.00027397,2]
[341596120,1731015047163,-500.0,0.00027397,2]
[341596121,1731015047173,-529.47207395,0.00027397,2]
[341596122,1731015047182,-500.0,0.00027397,2]
[341596123,1731015047191,-500.0,0.00027397,2]
[341596124,1731015047200,-500.0,0.00027397,2]
[341596125,1731015047209,-500.0,0.00027397,2]
[341596126,1731015047218,-417.89620325,0.00027397,2]
[341596127,1731015047509,-82.10379675,0.00027397,2]
[341596128,1731015047518,-31.51542693,0.00027397,2]
[341596129,1731015047529,-468.48457307,0.00027397,2]
[341596130,1731015047538,-500.0,0.00027397,2]
[341596131,1731015047548,-530.14,0.00027397,2]
[341596132,1731015047557,-454.92412521,0.00027397,2]
[341596133,1731015047576,-45.07587479,0.00027397,2]
[341596134,1731015047586,-500.0,0.00027397,2]
[341596135,1731015047595,-343.23292359,0.00027397,2]
[341596136,1731015047610,-156.76707641,0.00027397,2]
[341596137,1731015047619,-500.0,0.00027397,2]
[341596138,1731015047629,-500.0,0.00027397,2]
[341596139,1731015047638,-31.68292359,0.00027397,2]
[341596140,1731015058353,150.0,0.00018123,2]
[341596142,1731015124350,1000.0,0.00025068,7]
[341596143,1731015278149,150.0,0.00020014,2]
[341596144,1731015419073,156.66,0.00015342,2]
[341596146,1731015719700,401.93,0.00024819,120]
[341596149,1731015940151,-250.0,0.00021,2]
[341596150,1731015940172,-300.0,0.00023,2]
[341596151,1731015940192,-299.1339479,0.00023731,2]
[341596152,1731015948356,-2413.8550101,0.00023731,2]
[341596153,1731015948381,-471.08721933,0.00023751,2]
[341596154,1731015948405,-597.29069212,0.00023851,2]
[341596155,1731015948426,-1420.78,0.00023859,2]
[341596156,1731015948448,-150.0,0.00023945,2]
[341596157,1731015948469,-7367.04,0.00023945,2]
[341596158,1731015948489,-2889.2,0.00023945,2]
[341596159,1731015948509,-207.9,0.00023945,2]
[341596160,1731015948529,-500.0,0.00023972,2]
[341596161,1731015948550,-1400.0,0.00023972,2]
[341596162,1731015948569,-200.0,0.00024347,2]
[341596163,1731015948588,-2965.14,0.00024586,2]
[341596164,1731015948609,-167.31,0.00024635,2]
[341596165,1731015948629,-200.0,0.00024674,2]
[341596166,1731015948648,-250.0,0.00024674,2]
[341596167,1731015948668,-803.0,0.00024728,2]
[341596168,1731015948687,-1811.33,0.00024729,2]
[341596169,1731015948707,-614.85,0.00024733,2]
[341596170,1731015948727,-619.37,0.00024733,2]
[341596171,1731015948746,-1085.55,0.00024733,2]
[341596172,1731015948765,-467.42,0.00024735,2]
[341596173,1731015948785,-465.72,0.00024833,2]
[341596174,1731015948805,-1500.0,0.00024834,2]
[341596175,1731015948825,-861.59,0.00024837,2]
[341596176,1731015948847,-1784.8,0.00024853,2]
[341596177,1731015948871,-910.69,0.00024917,2]
[341596178,1731015948891,-2000.0,0.00024931,2]
[341596179,1731015948913,-500.0,0.00024932,2]
[341596180,1731015948934,-500.0,0.00024932,2]
[341596181,1731015948953,-500.0,0.00024932,2]
[341596182,1731015948975,-16674.72594742,0.00024937,2]
[341596183,1731015977257,6000.0,0.00025,10]
[341596184,1731016032141,-386.55128859,0.0002342,2]
[341596185,1731016037120,-152.2055378,0.0002342,2]
[341596186,1731016094690,150.0,0.00018123,2]
[341596187,1731016147111,-450.0,0.00021,2]
[341596188,1731016147133,-500.0,0.00023,2]
[341596189,1731016147156,-899.35317361,0.0002342,2]
[341596190,1731016147176,-194.52675,0.0002346,2]
[341596191,1731016147196,-1300.0,0.00023972,2]
[341596192,1731016147215,-500.0,0.00023972,2]
[341596193,1731016147237,-537.99,0.00024719,2]
[341596194,1731016147259,-2793.04383642,0.0002493,2]
[341596195,1731016148078,-17052.04214,0.0002493,2]
[341596196,1731016153088,-528.5226044,0.0002493,2]
[341596197,1731016156090,-1758.60204608,0.0002493,2]
[341596198,1731016156110,-3946.76260667,0.0002493,2]
[341596199,1731016159094,-1505.99739333,0.0002493,2]
[341596200,1731016159114,-7225.27405258,0.00024937,2]
[341596201,1731016159134,-178.91,0.00024947,2]
[341596202,1731016159155,-150.99,0.00024968,2]
[341596203,1731016159176,-268.57,0.00024996,2]
[341596204,1731016159196,-550.0,0.00025,2]
[341596205,1731016159215,-500.0,0.00025068,7]
[341596206,1731016159235,-1300.0,0.00025068,7]
[341596207,1731016159256,-500.0,0.00025068,7]
[341596208,1731016159276,-250.0,0.000251,2]
[341596209,1731016159297,-537.99,0.00025116,2]
[341596210,1731016159316,-164.3,0.00025119,2]
[341596211,1731016159336,-1000.0,0.00025143,2]
[341596214,1731016190854,500.0,0.00025068,7]
[341596215,1731016213130,500.0,0.00025068,7]
[341596216,1731016213384,1000.0,0.00023972,2]
[341596217,1731016214925,1000.0,0.00025068,7]
[341596222,1731016231516,-250.0,0.00025154,2]
[341596223,1731016231526,-319.99999994,0.00025193,2]
[341596224,1731016231538,-351.899999,0.00025193,2]
[341596225,1731016231574,-328.10000106,0.00025193,2]
[341596226,1731016231583,-40.89999894,0.00025194,2]
[341596227,1731016231605,-149.74000106,0.00025194,2]